[Event "25th European Club Cup Women 2021"]
[Site "Struga"]
[Date "2021.09.21"]
[Round "4.6"]
[White "Toncheva, Nadya"]
[Black "Abdumalik, Zhansaya"]
[Result "0-1"]
[ECO "B15"]
[WhiteElo "2178"]
[BlackElo "2502"]
[Annotator "ChessBase"]
[PlyCount "106"]
[EventDate "2021.09.18"]
[EventType "team-tourn"]
[EventCountry "MKD"]
[SourceTitle "playchess.com"]
[Source "ChessBase"]
[SourceQuality "1"]
[TimeControl "40/5400+30:1800+30"]

1. e4 {[%emt 0:00:02]} c6 {[%emt 0:00:05]} 2. d4 {[%emt 0:00:05]} d5 {[%emt 0:
00:06]} 3. Nc3 {[%emt 0:00:04]} dxe4 {[%emt 0:00:09]} 4. Nxe4 {[%emt 0:00:06]}
Nf6 {[%emt 0:00:07]} 5. Nxf6+ {[%emt 0:00:04]} exf6 {[%emt 0:00:08]} 6. c3 {
[%emt 0:00:03]} Bd6 {[%emt 0:01:40]} 7. Bd3 {[%emt 0:00:04]} O-O {[%emt 0:00:
11]} 8. Qc2 {[%emt 0:00:02]} Re8+ {[%emt 0:00:17]} 9. Ne2 {[%emt 0:00:03]} h5 {
[%emt 0:00:10]} 10. O-O {[%emt 0:00:05]} h4 {[%emt 0:00:13]} 11. h3 {[%emt 0:
00:06]} Nd7 {[%emt 0:00:34]} 12. Bf4 {[%emt 0:03:58]} Nf8 {[%emt 0:04:22]} 13.
Bxd6 {[%emt 0:02:06]} Qxd6 {[%emt 0:00:02]} 14. Rad1 {[%emt 0:06:27]} Bd7 {
[%emt 0:03:40]} 15. c4 {[%emt 0:01:28]} f5 {[%emt 0:01:13]} 16. Qd2 {[%emt 0:
06:57]} Qf6 {[%emt 0:02:14]} 17. f4 {[%emt 0:10:02]} Rad8 {[%emt 0:02:06]} 18.
Rfe1 {[%emt 0:09:37]} Bc8 {[%emt 0:05:25]} 19. Qa5 {[%emt 0:14:17]} a6 {
[%emt 0:04:57]} 20. Qc5 {[%emt 0:00:58]} g6 {[%emt 0:01:56]} 21. Bc2 {[%emt 0:
01:56]} Re3 {[%emt 0:03:32]} 22. Kf2 {[%emt 0:12:04]} Rde8 {[%emt 0:01:53]} 23.
Rd2 {[%emt 0:01:13]} g5 {[%emt 0:04:33]} 24. Red1 {[%emt 0:07:11]} gxf4 {
[%emt 0:03:47]} 25. Ng1 {[%emt 0:00:15]} Qg5 {[%emt 0:00:57]} 26. Nf3 {[%emt 0:
00:05]} Qg3+ {[%emt 0:00:37]} 27. Kf1 {[%emt 0:00:04]} Rxf3+ {[%emt 0:00:21]}
28. gxf3 {[%emt 0:00:05]} Qxf3+ {[%emt 0:00:07]} 29. Kg1 {[%emt 0:00:10]} Qxh3
{[%emt 0:03:29]} 30. Rg2+ {[%emt 0:03:01]} Ng6 {[%emt 0:00:10]} 31. Qd6 {
[%emt 0:01:02]} Kg7 {[%emt 0:01:24]} 32. Rf1 {[%emt 0:03:34]} f3 {[%emt 0:00:
23]} 33. Rgf2 {[%emt 0:00:22]} Re4 {[%emt 0:14:56]} 34. Bxe4 {[%emt 0:01:10]}
fxe4 {[%emt 0:00:06]} 35. Qh2 {[%emt 0:00:17]} Qg3+ {[%emt 0:02:23]} 36. Qxg3 {
[%emt 0:04:55]} hxg3 {[%emt 0:00:05]} 37. Rxf3 {[%emt 0:00:03]} exf3 {[%emt 0:
00:11]} 38. Rxf3 {[%emt 0:00:02]} f5 {[%emt 0:01:10]} 39. Rxg3 {[%emt 0:00:05]}
f4 {[%emt 0:00:04]} 40. Rd3 {[%emt 0:00:00]} Kf6 {[%emt 0:00:00]} 41. Kf2 {
[%emt 0:01:41]} Kf5 {[%emt 0:00:24]} 42. Rd1 {[%emt 0:04:28]} Ke4 {[%emt 0:00:
40]} 43. b3 {[%emt 0:01:30]} Bg4 {[%emt 0:01:19]} 44. Rg1 {[%emt 0:00:08]} Bf5
{[%emt 0:00:25]} 45. Rd1 {[%emt 0:00:40]} f3 {[%emt 0:00:36]} 46. Re1+ {
[%emt 0:00:07]} Kf4 {[%emt 0:00:18]} 47. Re8 {[%emt 0:01:30]} c5 {[%emt 0:00:
56]} 48. dxc5 {[%emt 0:01:04]} Ne5 {[%emt 0:00:08]} 49. Rf8 {[%emt 0:00:49]}
Nd3+ {[%emt 0:00:20]} 50. Kf1 {[%emt 0:00:03]} Ke4 {[%emt 0:00:09]} 51. Rh8 {
[%emt 0:00:18]} Nxc5 {[%emt 0:00:18]} 52. b4 {[%emt 0:00:29]} Ke3 {[%emt 0:00:
07]} 53. Rh2 {[%emt 0:00:57]} Ne4 {[%emt 0:00:32]} 0-1

[Event "25th European Club Cup Women 2021"]
[Site "Struga"]
[Date "2021.09.21"]
[Round "4.7"]
[White "Osmak, Iulija"]
[Black "Galunova, Tsveta"]
[Result "1-0"]
[ECO "D27"]
[WhiteElo "2428"]
[BlackElo "2190"]
[Annotator "NA"]
[PlyCount "59"]
[EventDate "2021.09.18"]
[EventType "team-tourn"]
[EventCountry "MKD"]
[SourceTitle "playchess.com"]
[Source "ChessBase"]
[SourceQuality "1"]
[TimeControl "40/5400+30:1800+30"]

1. d4 {[%emt 0:00:04]} d5 {[%emt 0:00:20]} 2. c4 {[%emt 0:00:05]} dxc4 {
[%emt 0:00:28]} 3. Nf3 {[%emt 0:00:09]} Nf6 {[%emt 0:00:06]} 4. e3 {[%emt 0:00:
04]} e6 {[%emt 0:00:05]} 5. Bxc4 {[%emt 0:00:04]} c5 {[%emt 0:00:12]} 6. O-O {
[%emt 0:00:08]} Nc6 {[%emt 0:00:08]} 7. Nc3 {[%emt 0:02:03]} a6 {[%emt 0:03:43]
} 8. Bb3 {[%emt 0:17:33]} b5 {[%emt 0:09:56]} 9. d5 {[%emt 0:06:23]} exd5 {
[%emt 0:02:03]} 10. Nxd5 {[%emt 0:00:04]} c4 {[%emt 0:02:49]} 11. Nxf6+ {
[%emt 0:00:07]} Qxf6 {[%emt 0:00:08]} 12. Bc2 {[%emt 0:00:03]} Bb7 {[%emt 0:06:
11]} 13. e4 {[%emt 0:17:27]} Rd8 {[%emt 0:06:53]} 14. Qe2 {[%emt 0:00:57]} Ne5
{[%emt 0:01:46]} 15. Nxe5 {[%emt 0:04:35]} Qxe5 {[%emt 0:00:04]} 16. f4 {
[%emt 0:13:09]} Bc5+ {[%emt 0:03:22]} 17. Kh1 {[%emt 0:00:23]} Qf6 {[%emt 0:14:
24]} 18. e5 {[%emt 0:05:39]} Qc6 {[%emt 0:01:34]} 19. f5 {[%emt 0:00:36]} O-O {
[%emt 0:01:57]} 20. Rf3 {[%emt 0:05:35]} Bd4 {[%emt 0:12:31]} 21. Rg3 {[%emt 0:
06:02]} Rfe8 {[%emt 0:06:59]} 22. Bf4 {[%emt 0:00:54]} Bxb2 {[%emt 0:11:03]}
23. Qg4 {[%emt 0:04:13]} g6 {[%emt 0:01:01]} 24. Re1 {[%emt 0:01:17]} Kh8 {
[%emt 0:12:36]} 25. Qh4 {[%emt 0:04:13]} Rd7 {[%emt 0:01:40]} 26. fxg6 {
[%emt 0:05:16]} fxg6 {[%emt 0:00:02]} 27. Rxg6 {[%emt 0:00:23]} Re6 {[%emt 0:
00:28]} 28. Rg4 {[%emt 0:00:44]} Re8 {[%emt 0:01:26]} 29. Bg5 {[%emt 0:01:00]}
Bxe5 {[%emt 0:00:32]} 30. Bf6+ {[%emt 0:01:22]} 1-0

[Event "25th European Club Cup Women 2021"]
[Site "Struga"]
[Date "2021.09.21"]
[Round "4.8"]
[White "Trajkovska, Sanja"]
[Black "Buksa, Nataliya"]
[Result "0-1"]
[ECO "B20"]
[WhiteElo "1968"]
[BlackElo "2417"]
[Annotator "NA"]
[PlyCount "66"]
[EventDate "2021.09.18"]
[EventType "team-tourn"]
[EventCountry "MKD"]
[SourceTitle "playchess.com"]
[Source "ChessBase"]
[SourceQuality "1"]
[TimeControl "40/5400+30:1800+30"]

1. e4 {[%emt 0:00:03]} c5 {[%emt 0:00:06]} 2. b4 {[%emt 0:00:08]} cxb4 {
[%emt 0:04:19]} 3. a3 {[%emt 0:00:06]} e5 {[%emt 0:01:22]} 4. Nf3 {[%emt 0:00:
33]} Nc6 {[%emt 0:00:10]} 5. Bb2 {[%emt 0:00:58]} d5 {[%emt 0:01:54]} 6. exd5 {
[%emt 0:02:45]} Qxd5 {[%emt 0:00:05]} 7. axb4 {[%emt 0:03:35]} Bxb4 {[%emt 0:
01:36]} 8. Nc3 {[%emt 0:04:33]} Bxc3 {[%emt 0:09:11]} 9. Bxc3 {[%emt 0:00:34]}
Nf6 {[%emt 0:00:05]} 10. Ra4 {[%emt 0:12:59]} O-O {[%emt 0:00:54]} 11. Bc4 {
[%emt 0:01:44]} Qe4+ {[%emt 0:01:20]} 12. Kf1 {[%emt 0:06:16]} Qf5 {[%emt 0:06:
39]} 13. h3 {[%emt 0:05:18]} e4 {[%emt 0:03:46]} 14. Nd4 {[%emt 0:07:22]} Nxd4
{[%emt 0:19:08]} 15. Bxd4 {[%emt 0:00:05]} Be6 {[%emt 0:00:02]} 16. Bxe6 {
[%emt 0:14:34]} Qxe6 {[%emt 0:00:04]} 17. Qa1 {[%emt 0:00:22]} a6 {[%emt 0:03:
27]} 18. h4 {[%emt 0:07:29]} Rfd8 {[%emt 0:03:53]} 19. Bc3 {[%emt 0:11:59]} b5
{[%emt 0:00:56]} 20. Bxf6 {[%emt 0:07:26]} Qxf6 {[%emt 0:08:41]} 21. Qxf6 {
[%emt 0:00:24]} gxf6 {[%emt 0:00:04]} 22. Rxe4 {[%emt 0:00:17]} Rxd2 {[%emt 0:
00:04]} 23. Re2 {[%emt 0:00:40]} Rd4 {[%emt 0:00:18]} 24. Rh3 {[%emt 0:01:44]}
a5 {[%emt 0:00:07]} 25. c3 {[%emt 0:04:33]} Ra4 {[%emt 0:02:03]} 26. Rb2 {
[%emt 0:00:49]} Ra1+ {[%emt 0:00:06]} 27. Ke2 {[%emt 0:00:14]} a4 {[%emt 0:00:
15]} 28. Rd3 {[%emt 0:04:55]} a3 {[%emt 0:03:07]} 29. Rbd2 {[%emt 0:00:04]} Kg7
{[%emt 0:00:30]} 30. Rd1 {[%emt 0:00:17]} Re8+ {[%emt 0:02:17]} 31. Kf3 {
[%emt 0:00:49]} Rxd1 {[%emt 0:00:14]} 32. Rxd1 {[%emt 0:00:04]} Rc8 {[%emt 0:
00:02]} 33. Rc1 {[%emt 0:01:56]} b4 {[%emt 0:00:05]} 0-1

[Event "25th European Club Cup Women 2021"]
[Site "Struga"]
[Date "2021.09.21"]
[Round "4.9"]
[White "Saduakassova, Dinara"]
[Black "Radeva, Viktoria"]
[Result "1-0"]
[ECO "A07"]
[WhiteElo "2489"]
[BlackElo "2350"]
[Annotator "ChessBase"]
[PlyCount "77"]
[EventDate "2021.09.18"]
[EventType "team-tourn"]
[EventCountry "MKD"]
[SourceTitle "playchess.com"]
[Source "ChessBase"]
[SourceQuality "1"]
[TimeControl "40/5400+30:1800+30"]

1. Nf3 {[%emt 0:00:14]} d5 {[%emt 0:00:06]} 2. g3 {[%emt 0:00:06]} c6 {[%emt 0:
00:16]} 3. Bg2 {[%emt 0:00:09]} Bg4 {[%emt 0:00:07]} 4. d3 {[%emt 0:00:49]} e6
{[%emt 0:00:19]} 5. O-O {[%emt 0:00:25]} Bd6 {[%emt 0:00:18]} 6. e4 {[%emt 0:
04:40]} Ne7 {[%emt 0:00:23]} 7. Nbd2 {[%emt 0:05:34]} O-O {[%emt 0:00:26]} 8.
Qe1 {[%emt 0:02:58]} Nd7 {[%emt 0:00:30]} 9. Nh4 {[%emt 0:03:38]} Bh5 {[%emt 0:
03:48]} 10. h3 {[%emt 1:16:57]} Ng6 {[%emt 0:04:51]} 11. Nxg6 {[%emt 0:00:00]}
Bxg6 {[%emt 1:24:56]} 12. f4 {[%emt 0:01:00]} f6 {[%emt 0:00:30]} 13. Kh1 {
[%emt 0:00:00]} Qc7 {[%emt 0:00:00]} 14. Nf3 {[%emt 0:01:00]} Rae8 {[%emt 0:01:
00]} 15. Nh4 {[%emt 0:00:00]} Bf7 {[%emt 0:00:00]} 16. Qe2 {[%emt 0:01:00]} f5
{[%emt 0:00:00]} 17. Bd2 {[%emt 0:00:30]} Be7 {[%emt 0:00:00]} 18. Nf3 {
[%emt 0:00:30]} Bh5 {[%emt 0:02:00]} 19. Bc3 {[%emt 0:00:30]} Bf6 {[%emt 0:00:
00]} 20. e5 {[%emt 0:00:00]} Bd8 {[%emt 0:00:00]} 21. Qf2 {[%emt 0:00:00]} c5 {
[%emt 0:00:00]} 22. Nh2 {[%emt 0:00:00]} b5 {[%emt 0:00:00]} 23. Bd2 {[%emt 0:
00:00]} h6 {[%emt 0:02:30]} 24. g4 {[%emt 0:02:30]} fxg4 {[%emt 0:00:00]} 25.
hxg4 {[%emt 0:00:00]} Bg6 {[%emt 0:00:00]} 26. Qg3 {[%emt 0:01:00]} Bh7 {
[%emt 0:01:30]} 27. Rae1 {[%emt 0:00:30]} Kh8 {[%emt 0:00:00]} 28. Nf3 {
[%emt 0:00:00]} Nb6 {[%emt 0:00:00]} 29. Bh3 {[%emt 0:00:00]} d4 {[%emt 0:00:
00]} 30. g5 {[%emt 0:01:30]} Qf7 {[%emt 0:00:00]} 31. Nh4 {[%emt 0:00:00]} Qe7
{[%emt 0:00:00]} 32. Rg1 {[%emt 0:00:00]} Rg8 {[%emt 0:00:00]} 33. Bg2 {
[%emt 0:00:00]} Ref8 {[%emt 0:00:46]} 34. Re2 {[%emt 0:00:00]} Nd5 {[%emt 0:02:
04]} 35. Be4 {[%emt 0:00:00]} Ne3 {[%emt 0:01:04]} 36. Bxe3 {[%emt 0:00:00]}
dxe3 {[%emt 0:00:09]} 37. g6 {[%emt 0:00:00]} Qxh4+ {[%emt 0:00:15]} 38. Qxh4 {
[%emt 0:00:00]} Bxh4 {[%emt 0:00:03]} 39. gxh7 {[%emt 0:00:00]} 1-0

[Event "25th European Club Cup Women 2021"]
[Site "Struga"]
[Date "2021.09.21"]
[Round "4.10"]
[White "Mehmed, Elif"]
[Black "Badelka, Olga"]
[Result "0-1"]
[ECO "C54"]
[WhiteElo "2260"]
[BlackElo "2422"]
[Annotator "ChessBase"]
[PlyCount "148"]
[EventDate "2021.09.18"]
[EventType "team-tourn"]
[EventCountry "MKD"]
[SourceTitle "playchess.com"]
[Source "ChessBase"]
[SourceQuality "1"]
[TimeControl "40/5400+30:1800+30"]

1. e4 {[%emt 0:00:06]} e5 {[%emt 0:00:11]} 2. Nf3 {[%emt 0:00:05]} Nc6 {
[%emt 0:00:07]} 3. Bc4 {[%emt 0:00:09]} Bc5 {[%emt 0:00:19]} 4. O-O {[%emt 0:
00:10]} Nf6 {[%emt 0:00:39]} 5. d3 {[%emt 0:00:08]} h6 {[%emt 0:01:09]} 6. Nbd2
{[%emt 0:00:24]} d6 {[%emt 0:00:45]} 7. c3 {[%emt 0:00:07]} O-O {[%emt 0:00:33]
} 8. Re1 {[%emt 0:00:21]} Bb6 {[%emt 0:02:16]} 9. Bb3 {[%emt 0:00:36]} a5 {
[%emt 0:08:09]} 10. Nf1 {[%emt 0:02:42]} Be6 {[%emt 0:06:04]} 11. Ba4 {[%emt 0:
03:48]} Ne7 {[%emt 0:02:06]} 12. h3 {[%emt 0:04:03]} Ng6 {[%emt 0:01:18]} 13.
d4 {[%emt 0:00:47]} c6 {[%emt 0:06:52]} 14. Ng3 {[%emt 0:03:00]} Qc7 {[%emt 0:
00:30]} 15. Be3 {[%emt 0:03:04]} Rad8 {[%emt 0:01:05]} 16. Qc2 {[%emt 0:07:51]}
Rfe8 {[%emt 0:04:16]} 17. Rad1 {[%emt 0:10:30]} Bc4 {[%emt 0:06:01]} 18. Qb1 {
[%emt 0:18:57]} Ra8 {[%emt 0:13:57]} 19. Bc2 {[%emt 0:09:17]} Be6 {[%emt 0:05:
57]} 20. Bd3 {[%emt 0:04:58]} a4 {[%emt 0:03:39]} 21. b3 {[%emt 0:07:03]} axb3
{[%emt 0:00:46]} 22. axb3 {[%emt 0:00:06]} c5 {[%emt 0:10:30]} 23. Bb5 {
[%emt 0:05:53]} Red8 {[%emt 0:01:00]} 24. d5 {[%emt 0:02:53]} Bd7 {[%emt 0:01:
39]} 25. Bxd7 {[%emt 0:00:22]} Rxd7 {[%emt 0:02:54]} 26. Nd2 {[%emt 0:01:30]}
Ba5 {[%emt 0:04:52]} 27. b4 {[%emt 0:00:38]} cxb4 {[%emt 0:00:38]} 28. cxb4 {
[%emt 0:00:05]} Bb6 {[%emt 0:00:01]} 29. Rc1 {[%emt 0:00:31]} Qd8 {[%emt 0:00:
03]} 30. Bxb6 {[%emt 0:01:37]} Qxb6 {[%emt 0:00:03]} 31. b5 {[%emt 0:01:14]}
Nf4 {[%emt 0:05:24]} 32. Nc4 {[%emt 0:01:13]} Qd8 {[%emt 0:00:01]} 33. Nf5 {
[%emt 0:04:40]} g6 {[%emt 0:00:52]} 34. Nfe3 {[%emt 0:03:55]} Rc7 {[%emt 0:04:
58]} 35. Kh2 {[%emt 0:00:52]} Rc5 {[%emt 0:00:50]} 36. g3 {[%emt 0:00:33]} N4h5
{[%emt 0:00:04]} 37. Nd2 {[%emt 0:01:34]} Nd7 {[%emt 0:01:11]} 38. Nec4 {
[%emt 0:01:28]} Nb6 {[%emt 0:00:21]} 39. Nxb6 {[%emt 0:01:25]} Qxb6 {[%emt 0:
00:02]} 40. Rxc5 {[%emt 0:00:00]} Qxc5 {[%emt 0:00:00]} 41. Kg2 {[%emt 0:03:15]
} Rc8 {[%emt 0:06:57]} 42. Qd3 {[%emt 0:02:41]} Nf6 {[%emt 0:00:28]} 43. Qe3 {
[%emt 0:08:11]} Kg7 {[%emt 0:02:58]} 44. Qxc5 {[%emt 0:06:40]} Rxc5 {[%emt 0:
00:07]} 45. b6 {[%emt 0:01:20]} Rc2 {[%emt 0:00:48]} 46. Rd1 {[%emt 0:00:11]}
Nd7 {[%emt 0:01:11]} 47. Kf3 {[%emt 0:03:34]} Nxb6 {[%emt 0:01:59]} 48. Ke3 {
[%emt 0:00:15]} Na4 {[%emt 0:08:06]} 49. Rb1 {[%emt 0:00:27]} Rb2 {[%emt 0:00:
21]} 50. Rxb2 {[%emt 0:04:59]} Nxb2 {[%emt 0:00:07]} 51. Nb1 {[%emt 0:01:00]}
Kf6 {[%emt 0:06:44]} 52. Na3 {[%emt 0:00:49]} Ke7 {[%emt 0:00:30]} 53. g4 {
[%emt 0:01:21]} Na4 {[%emt 0:03:43]} 54. Nb5 {[%emt 0:00:34]} Nc5 {[%emt 0:00:
31]} 55. f3 {[%emt 0:00:36]} Kd7 {[%emt 0:04:33]} 56. Kd2 {[%emt 0:00:34]} Na6
{[%emt 0:01:47]} 57. Kc3 {[%emt 0:00:16]} Nc7 {[%emt 0:00:11]} 58. Kb4 {
[%emt 0:02:05]} Nxb5 {[%emt 0:01:38]} 59. Kxb5 {[%emt 0:00:05]} Kc7 {[%emt 0:
00:02]} 60. h4 {[%emt 0:00:47]} b6 {[%emt 0:00:34]} 61. g5 {[%emt 0:01:33]}
hxg5 {[%emt 0:00:08]} 62. hxg5 {[%emt 0:00:04]} Kb7 {[%emt 0:00:03]} 63. Kb4 {
[%emt 0:00:11]} Ka6 {[%emt 0:00:03]} 64. Ka4 {[%emt 0:00:10]} b5+ {[%emt 0:00:
04]} 65. Kb4 {[%emt 0:00:03]} Kb6 {[%emt 0:00:03]} 66. Kb3 {[%emt 0:00:09]} Kc5
{[%emt 0:00:08]} 67. Kc3 {[%emt 0:00:19]} b4+ {[%emt 0:00:04]} 68. Kd3 {
[%emt 0:01:52]} Kb5 {[%emt 0:00:05]} 69. Kd2 {[%emt 0:01:32]} Kc4 {[%emt 0:00:
20]} 70. Kc2 {[%emt 0:00:30]} b3+ {[%emt 0:02:49]} 71. Kb2 {[%emt 0:00:21]} Kb4
{[%emt 0:00:04]} 72. Kb1 {[%emt 0:00:57]} Kc3 {[%emt 0:00:14]} 73. Kc1 {
[%emt 0:00:05]} b2+ {[%emt 0:00:25]} 74. Kb1 {[%emt 0:00:03]} Kb3 {[%emt 0:00:
04]} 0-1

[Event "25th European Club Cup Women 2021"]
[Site "Struga"]
[Date "2021.09.21"]
[Round "4.12"]
[White "Manova, Ivana"]
[Black "Solozhenkina, Elizaveta"]
[Result "0-1"]
[ECO "C02"]
[WhiteElo "1779"]
[BlackElo "2311"]
[Annotator "ChessBase"]
[PlyCount "182"]
[EventDate "2021.09.18"]
[EventType "team-tourn"]
[EventCountry "MKD"]
[SourceTitle "playchess.com"]
[Source "ChessBase"]
[SourceQuality "1"]
[TimeControl "40/5400+30:1800+30"]

1. e4 {[%emt 0:00:09]} e6 {[%emt 0:00:06]} 2. d4 {[%emt 0:00:19]} d5 {[%emt 0:
00:06]} 3. e5 {[%emt 0:00:25]} c5 {[%emt 0:00:12]} 4. c3 {[%emt 0:00:16]} Qb6 {
[%emt 0:03:02]} 5. Nf3 {[%emt 0:00:57]} Nc6 {[%emt 0:00:11]} 6. Bd3 {[%emt 0:
00:44]} Bd7 {[%emt 0:06:46]} 7. O-O {[%emt 0:01:00]} a5 {[%emt 0:12:08]} 8. Bc2
{[%emt 0:07:52]} cxd4 {[%emt 0:08:59]} 9. cxd4 {[%emt 0:00:14]} Nb4 {[%emt 0:
00:09]} 10. Ba4 {[%emt 0:02:04]} Bxa4 {[%emt 0:00:10]} 11. Qxa4+ {[%emt 0:00:
05]} Qc6 {[%emt 0:00:06]} 12. Qxc6+ {[%emt 0:09:34]} bxc6 {[%emt 0:01:20]} 13.
a3 {[%emt 0:03:46]} Nd3 {[%emt 0:09:10]} 14. Rd1 {[%emt 0:02:55]} Nxc1 {
[%emt 0:00:08]} 15. Rxc1 {[%emt 0:00:03]} Kd7 {[%emt 0:00:12]} 16. b3 {[%emt 0:
04:58]} Nh6 {[%emt 0:02:23]} 17. Nc3 {[%emt 0:01:38]} Be7 {[%emt 0:06:42]} 18.
Na4 {[%emt 0:03:56]} Rhb8 {[%emt 0:01:22]} 19. Rc3 {[%emt 0:00:46]} Rb5 {
[%emt 0:10:23]} 20. Ne1 {[%emt 0:13:40]} Nf5 {[%emt 0:03:24]} 21. Nc2 {[%emt 0:
01:35]} h5 {[%emt 0:01:48]} 22. h3 {[%emt 0:06:18]} g5 {[%emt 0:02:09]} 23. g4
{[%emt 0:03:40]} hxg4 {[%emt 0:00:25]} 24. hxg4 {[%emt 0:00:12]} Nh4 {[%emt 0:
00:10]} 25. Ne1 {[%emt 0:07:05]} Rab8 {[%emt 0:02:36]} 26. Nd3 {[%emt 0:16:19]}
Nf3+ {[%emt 0:00:55]} 27. Kg2 {[%emt 0:00:03]} Nxd4 {[%emt 0:00:09]} 28. Nac5+
{[%emt 0:00:44]} Bxc5 {[%emt 0:04:06]} 29. Nxc5+ {[%emt 0:00:48]} Ke7 {[%emt 0:
00:21]} 30. b4 {[%emt 0:03:45]} Ne2 {[%emt 0:01:09]} 31. Rc2 {[%emt 0:05:14]}
Nf4+ {[%emt 0:00:08]} 32. Kg1 {[%emt 0:00:07]} Ra8 {[%emt 0:00:13]} 33. Nb3 {
[%emt 0:01:37]} axb4 {[%emt 0:01:14]} 34. Nd4 {[%emt 0:00:13]} Rb7 {[%emt 0:02:
27]} 35. Rb1 {[%emt 0:01:59]} Rxa3 {[%emt 0:02:12]} 36. Rxb4 {[%emt 0:01:09]}
Rxb4 {[%emt 0:00:25]} 37. Nxc6+ {[%emt 0:00:06]} Kd7 {[%emt 0:03:19]} 38. Nxb4
{[%emt 0:00:06]} Ra4 {[%emt 0:00:03]} 39. Rb2 {[%emt 0:01:31]} Ng6 {[%emt 0:00:
14]} 40. Nd3 {[%emt 0:00:00]} Rxg4+ {[%emt 0:00:00]} 41. Kh2 {[%emt 0:02:55]}
Ke7 {[%emt 0:04:51]} 42. f3 {[%emt 0:02:40]} Rd4 {[%emt 0:00:05]} 43. Rb3 {
[%emt 0:00:30]} Nf4 {[%emt 0:01:39]} 44. Nf2 {[%emt 0:01:11]} Rd2 {[%emt 0:01:
43]} 45. Rb7+ {[%emt 0:00:49]} Kf8 {[%emt 0:00:22]} 46. Kg1 {[%emt 0:00:06]}
Kg7 {[%emt 0:05:16]} 47. Ng4 {[%emt 0:02:46]} Ng6 {[%emt 0:06:13]} 48. Kf1 {
[%emt 0:01:38]} Ra2 {[%emt 0:02:30]} 49. Rb8 {[%emt 0:01:04]} Ra3 {[%emt 0:01:
55]} 50. Ke2 {[%emt 0:03:50]} Nh4 {[%emt 0:01:08]} 51. Nf6 {[%emt 0:02:04]}
Nxf3 {[%emt 0:03:07]} 52. Rg8+ {[%emt 0:01:02]} Kh6 {[%emt 0:00:09]} 53. Ng4+ {
[%emt 0:00:20]} Kh5 {[%emt 0:00:03]} 54. Nf6+ {[%emt 0:00:12]} Kh4 {[%emt 0:00:
05]} 55. Kf2 {[%emt 0:00:19]} Kh3 {[%emt 0:04:23]} 56. Rg7 {[%emt 0:01:34]} Nh4
{[%emt 0:04:54]} 57. Rxg5 {[%emt 0:02:04]} Rf3+ {[%emt 0:06:31]} 58. Ke2 {
[%emt 0:00:22]} d4 {[%emt 0:01:34]} 59. Ng4 {[%emt 0:05:32]} d3+ {[%emt 0:01:
47]} 60. Kd2 {[%emt 0:00:07]} Nf5 {[%emt 0:02:09]} 61. Nf6 {[%emt 0:04:39]} Ng3
{[%emt 0:02:48]} 62. Rg7 {[%emt 0:00:54]} Nf1+ {[%emt 0:02:04]} 63. Kd1 {
[%emt 0:01:18]} d2 {[%emt 0:03:54]} 64. Ne4 {[%emt 0:01:48]} Re3 {[%emt 0:00:
50]} 65. Nxd2 {[%emt 0:01:29]} Nxd2 {[%emt 0:01:03]} 66. Kxd2 {[%emt 0:00:02]}
Rf3 {[%emt 0:00:06]} 67. Ke2 {[%emt 0:00:30]} Rf5 {[%emt 0:00:04]} 68. Kd3 {
[%emt 0:00:15]} Kh4 {[%emt 0:00:04]} 69. Kd4 {[%emt 0:03:55]} Kh5 {[%emt 0:00:
15]} 70. Ke4 {[%emt 0:00:39]} Kh6 {[%emt 0:00:06]} 71. Rg4 {[%emt 0:00:32]} Rg5
{[%emt 0:00:13]} 72. Rf4 {[%emt 0:00:22]} Kg6 {[%emt 0:00:38]} 73. Rf6+ {
[%emt 0:00:17]} Kg7 {[%emt 0:00:01]} 74. Rf4 {[%emt 0:00:33]} Rg1 {[%emt 0:00:
28]} 75. Kd4 {[%emt 0:00:47]} Ra1 {[%emt 0:00:34]} 76. Rg4+ {[%emt 0:00:52]}
Kf8 {[%emt 0:00:01]} 77. Ke3 {[%emt 0:00:33]} Ra3+ {[%emt 0:01:03]} 78. Kf2 {
[%emt 0:00:15]} Ke7 {[%emt 0:01:05]} 79. Rb4 {[%emt 0:00:29]} Ra5 {[%emt 0:00:
38]} 80. Re4 {[%emt 0:00:04]} Kd7 {[%emt 0:01:01]} 81. Rf4 {[%emt 0:00:53]} Ke7
{[%emt 0:00:30]} 82. Re4 {[%emt 0:00:08]} Ra3 {[%emt 0:01:22]} 83. Rb4 {
[%emt 0:00:14]} Kf8 {[%emt 0:00:04]} 84. Rg4 {[%emt 0:00:21]} Ra5 {[%emt 0:00:
44]} 85. Re4 {[%emt 0:00:05]} Kg7 {[%emt 0:00:20]} 86. Rg4+ {[%emt 0:00:27]}
Kh6 {[%emt 0:00:20]} 87. Rf4 {[%emt 0:00:16]} Kg6 {[%emt 0:00:08]} 88. Rg4+ {
[%emt 0:01:22]} Kf5 {[%emt 0:00:07]} 89. Rg7 {[%emt 0:00:14]} Ra7 {[%emt 0:00:
04]} 90. Ke3 {[%emt 0:01:26]} Kxe5 {[%emt 0:00:06]} 91. Rg5+ {[%emt 0:00:06]}
f5 {[%emt 0:00:04]} 0-1

[Event "25th European Club Cup Women 2021"]
[Site "Struga"]
[Date "2021.09.21"]
[Round "4.13"]
[White "Goryachkina, Aleksandra"]
[Black "Unuk, Laura"]
[Result "1-0"]
[ECO "D45"]
[WhiteElo "2608"]
[BlackElo "2389"]
[Annotator "ChessBase"]
[PlyCount "73"]
[EventDate "2021.09.18"]
[EventType "team-tourn"]
[EventCountry "MKD"]
[SourceTitle "playchess.com"]
[Source "ChessBase"]
[SourceQuality "1"]
[TimeControl "40/5400+30:1800+30"]

1. c4 {[%emt 0:00:12]} c6 {[%emt 0:00:53]} 2. Nf3 {[%emt 0:00:19]} d5 {[%emt 0:
00:07]} 3. d4 {[%emt 0:00:14]} Nf6 {[%emt 0:00:38]} 4. Nc3 {[%emt 0:00:12]} e6
{[%emt 0:00:23]} 5. e3 {[%emt 0:02:34]} Nbd7 {[%emt 0:03:07]} 6. Qc2 {[%emt 0:
00:22]} Bd6 {[%emt 0:00:38]} 7. b3 {[%emt 0:00:26]} b6 {[%emt 0:02:02]} 8. Be2
{[%emt 0:02:26]} Bb7 {[%emt 0:00:18]} 9. O-O {[%emt 0:00:27]} O-O {[%emt 0:00:
20]} 10. Bb2 {[%emt 0:00:12]} Re8 {[%emt 0:03:21]} 11. Rfe1 {[%emt 0:01:33]}
Rc8 {[%emt 0:00:32]} 12. Rad1 {[%emt 0:02:34]} c5 {[%emt 0:06:59]} 13. dxc5 {
[%emt 0:12:25]} Nxc5 {[%emt 0:15:14]} 14. cxd5 {[%emt 0:05:21]} exd5 {[%emt 0:
02:15]} 15. Qb1 {[%emt 0:02:36]} a6 {[%emt 0:03:01]} 16. h3 {[%emt 0:06:15]}
Qe7 {[%emt 0:05:11]} 17. Qa1 {[%emt 0:03:57]} b5 {[%emt 0:04:50]} 18. Bd3 {
[%emt 0:02:45]} Nce4 {[%emt 0:05:53]} 19. Ne2 {[%emt 0:05:27]} Bb4 {[%emt 0:09:
29]} 20. Rf1 {[%emt 0:00:46]} Red8 {[%emt 0:04:01]} 21. Bxe4 {[%emt 0:06:27]}
dxe4 {[%emt 0:00:52]} 22. Nfd4 {[%emt 0:44:00]} Nd5 {[%emt 0:05:48]} 23. a3 {
[%emt 0:00:00]} Bc5 {[%emt 0:01:25]} 24. Nf5 {[%emt 0:00:00]} Qg5 {[%emt 0:00:
26]} 25. Neg3 {[%emt 0:00:00]} f6 {[%emt 0:09:47]} 26. b4 {[%emt 0:00:00]} Bb6
{[%emt 0:01:37]} 27. Qb1 {[%emt 0:00:00]} Rc4 {[%emt 0:06:04]} 28. Rd2 {
[%emt 0:00:00]} Kf8 {[%emt 0:01:14]} 29. Rfd1 {[%emt 0:00:00]} h5 {[%emt 0:04:
13]} 30. h4 {[%emt 0:00:00]} Qg4 {[%emt 0:00:14]} 31. Qa1 {[%emt 0:00:00]} Rd7
{[%emt 0:01:29]} 32. Bxf6 {[%emt 0:00:00]} gxf6 {[%emt 0:01:08]} 33. Rxd5 {
[%emt 0:00:00]} Bxd5 {[%emt 0:03:31]} 34. Qxf6+ {[%emt 0:00:00]} Rf7 {[%emt 0:
00:00]} 35. Qd6+ {[%emt 0:00:00]} Ke8 {[%emt 0:00:16]} 36. Qxd5 {[%emt 0:00:00]
} Rfc7 {[%emt 0:00:41]} 37. Qe6+ {[%emt 0:00:00]} 1-0